[Event "ITT 1st Parada Jamundi 2022"]
[Site "Jamundi Valle"]
[Date "2022.12.09"]
[Round "7.17"]
[White "Chavarro, Jeffry"]
[Black "Estrada Velandia, Henry Andres"]
[Result "1/2-1/2"]
[ECO "C11"]
[WhiteElo "2020"]
[BlackElo "1883"]
[Annotator "TA"]
[PlyCount "124"]
[EventDate "2022.12.05"]
[EventType "swiss"]
[EventCountry "COL"]
[SourceTitle "playchess.com"]
[Source "ChessBase"]
[SourceQuality "1"]
[TimeControl "5400+30"]

{[%evp 15,124,6,8,0,38,-6,-4,-6,50,59,46,47,48,35,60,11,21,0,27,20,36,36,23,38,27,35,108,114,243,210,203,223,187,229,319,288,385,382,414,402,366,329,377,270,276,29,18,0,0,0,0,0,0,0,200,100,102,0,0,0,0,0,81,51,48,0,0,0,0,0,313,163,293,155,127,0,237,0,0,0,0,0,0,0,533,252,231,218,191,172,174,13,16,22,25,0,0,0,0,0,0,0,0,0,0,0,0,0,0,0,32]} 1. e4 {[%emt 0:00:02]} e6 {[%emt 0:12:23]} 2. d4 {[%emt 0:00:11]} d5 {[%emt 0:01:18]} 3. Nc3 {[%emt 0:00:09]} Nf6 {[%emt 0:03:23]} 4. e5 {[%emt 0:00:10]} Nfd7 {[%emt 0:00:09]} 5. Nce2 {[%emt 0:00:40]} Be7 {[%emt 0:01:09]} 6. f4 {[%emt 0:00:07]} c5 {[%emt 0:02:02]} 7. Nf3 {[%emt 0:00:25]} Nc6 {[%emt 0:01:43]} 8. c3 {[%emt 0:09:10]} O-O {[%emt 0:05:49]} 9. Be3 {[%emt 0:06:50] 9.h4 is setting a new trend. C11: French: Classical System: 4 e5 and 4 Bg5 dxe4.} cxd4 {[%emt 0:08:30]} 10. cxd4 {[%emt 0:10:01] [#]} Nb6 $146 {[%emt 0:08:27]} ({Predecessor:} 10... f6 11. Nc3 fxe5 12. fxe5 a6 13. Be2 b5 14. a3 Nb6 15. Rc1 Nc4 16. Bxc4 bxc4 17. O-O Bd7 18. Qe1 Be8 19. Na4 Nxd4 20. Nxd4 Rxf1+ 21. Qxf1 Bf7 {0-1 (21) Dande,A (1680)-Farr,J (1525) FICGS email 2009}) 11. Nc3 {[%emt 0:01:27]} Na5 {[%emt 0:00:26]} (11... Nc4 $11 12. Bxc4 dxc4) 12. b3 $14 {[%emt 0:04:09]} Bd7 {[%emt 0:01:15]} 13. Bd3 {[%emt 0:00:14]} Rc8 {[%emt 0:02:57]} 14. Rc1 {[%emt 0:10:58]} h6 {[%emt 0:00:13]} 15. h4 {[%emt 0:10:59]} (15. Bb1 $14 {feels stronger.}) 15... Ba3 $11 {[%emt 0:02:25] [#]} 16. Bb1 $1 {[%emt 0:04:56][%cal Od1c2]} Bxc1 {[%emt 0:01:20]} (16... f5 17. Rc2) 17. Qd3 {[%emt 0:00:38][%csl Gb1][%cal Rd3h7]} f5 $1 {[%emt 0:11:37]} 18. exf6 $40 {[%emt 0:00:42][%mdl 128] White has some attack.} Qxf6 {[%emt 0:00:01]} 19. Bxc1 {[%emt 0:15:54]} Qf5 {[%emt 0:02:35] Inhibits g4.} 20. Qd2 {[%emt 0:05:40]} Qg4 {[%emt 0:01:04]} (20... Qxf4 $14 21. Qxf4 Rxf4 22. Bxf4 Rxc3) 21. Kf2 $1 $16 {[%emt 0:02:22]} Nc6 {[%emt 0:04:06]} (21... Rf5 $16) 22. h5 $1 $18 {[%emt 0:00:33]} e5 {[%emt 0:04:00]} 23. dxe5 {[%emt 0:02:58]} (23. Rh4 Qe6 24. dxe5 Qe7 $14) 23... d4 {[%emt 0:01:40]} 24. Ne4 {[%emt 0:00:51]} Nd5 {[%emt 0:06:53]} 25. Rh4 {[%emt 0:03:28]} Qe6 {[%emt 0:00:12]} 26. Nc5 {[%emt 0:06:28]} Qe7 {[%emt 0:00:49]} 27. Nxd7 {[%emt 0:00:04]} Qxd7 {[%emt 0:00:29]} 28. Qd3 {[%emt 0:00:02]} Nce7 {[%emt 0:02:12] [#]} 29. Nxd4 $1 {[%emt 0:02:45] Dancing on a razor blade.} Nf5 {[%emt 0:02:33] ...Nb4 is the strong threat.} (29... Rxc1 $2 30. e6 Rxb1 31. exd7 $18) 30. Nxf5 $2 {[%emt 0:01:29]} (30. e6 $1 $18 {[%cal Re6d7]} Qd8 31. Nxf5 Rxf5 32. Qxf5 Qxh4+ 33. Kf3) 30... Rxc1 $11 {[%emt 0:01:25]} 31. Qxd5+ {[%emt 0:01:06]} Qxd5 {[%emt 0:01:13]} 32. Ne7+ {[%emt 0:00:01]} Kf7 {[%emt 0:00:51] ( -> ...Qd4+)} 33. Nxd5 {[%emt 0:00:01]} Rxb1 {[%emt 0:00:24][%mdl 4096] Endgame KRR-KRN} 34. f5 {[%emt 0:00:01] Strongly threatening Rc4.} Rc8 {[%emt 0:03:12]} (34... Rd8 $1 $11 35. e6+ Ke8) 35. e6+ {[%emt 0:00:24]} (35. Rb4 $1 $18 {[%cal Rb4b7]}) 35... Kf8 $16 {[%emt 0:00:02]} 36. Rf4 {[%emt 0:01:23] White is more active.} ({White should try} 36. Rd4 $1 $16) 36... Rd1 {[%emt 0:00:58]} 37. Ne3 {[%emt 0:00:42] Against Rc2+} Rd2+ {[%emt 0:00:47]} 38. Kf3 {[%emt 0:00:07]} Ke7 {[%emt 0:04:03]} (38... Rc3 $11) 39. Rg4 {[%emt 0:00:20]} Kf8 {[%emt 0:01:21]} 40. Nc4 {[%emt 0:00:15]} (40. f6 $1 $14 gxf6 41. Nf5 Rc3+ 42. Kf4 Rf2+ 43. Ke4 Re2+ 44. Kd4) 40... Rxa2 $11 {[%emt 0:00:33]} 41. Rd4 {[%emt 0:00:18]} b5 {[%emt 0:00:17]} 42. Ne3 {[%emt 0:00:28]} Rc3 $2 {[%emt 0:00:32][%mdl 8192]} (42... a5 $11 {and Black stays safe.}) 43. Rd8+ $18 {[%emt 0:01:05]} Ke7 {[%emt 0:00:11]} 44. Rd7+ {[%emt 0:00:01]} ({Only move:} 44. Rg8 $18 Rxb3 45. Rxg7+ Kd6 46. Rd7+ Kc6 47. f6) 44... Kf8 $16 {[%emt 0:00:15]} 45. Rd8+ {[%emt 0:00:01]} (45. Rf7+ $1 $16 Kg8 46. f6 gxf6 47. Rxf6 Rxg2 48. Kxg2 (48. e7 Rg3+ 49. Kxg3 Rxe3+ 50. Kf4 Rxe7 $11) 48... Rxe3 49. Kf2 (49. Rxh6 a5 $11)) 45... Ke7 $18 {[%emt 0:00:02] [#]} 46. Rd7+ {[%emt 0:00:00]} (46. Rg8 $1 $18 {[%cal Rg8g7]} Rxb3 47. Rxg7+ Kd6 48. Rd7+ Kc6 49. f6) 46... Kf8 $11 {[%emt 0:00:02]} 47. Rf7+ {[%emt 0:01:56]} Kg8 $1 {[%emt 0:00:09]} 48. f6 {[%emt 0:00:29]} gxf6 {[%emt 0:00:27]} (48... Rxb3 49. Rxg7+ Kf8 50. e7+ Ke8 51. Rg8+ Kd7 52. e8=Q+ Kd6 53. Qe7+ Kc6 54. Rc8+ Kb6 55. Qd8+ Kb7 56. Rc7+ Kb6 57. Qd6+ Ka5 58. Rxa7#) 49. Rxf6 {[%emt 0:00:01] Threatens to win with e7.} Rc8 $2 {[%emt 0:03:12][%mdl 8192]} (49... Rxb3 {is a self mate.} 50. e7 (50. Rxh6 $2 Raa3 $19) 50... Rxe3+ 51. Kxe3 Ra3+ 52. Kf4 Kg7 53. Re6 Ra4+ 54. Kf5) (49... Rxg2 $1 $11 50. Kxg2 (50. e7 Rg3+ 51. Kxg3 Rxe3+ 52. Kg4 Rxe7 $11) 50... Rxe3) 50. Nf5 {[%emt 0:01:09]} ({Not} 50. Rxh6 Rf8+ 51. Ke4 a5 52. Rg6+ Kh8 $18) (50. Nd5 $142 {Black must now prevent Rf7.} Rf8 51. e7) 50... Rc3+ $18 {[%emt 0:01:12]} 51. Ke4 {[%emt 0:00:03] And now Rg6+ would win.} Re2+ {[%emt 0:00:49]} (51... Rxg2 52. Rg6+ Rxg6 53. hxg6 $18) 52. Kd4 {[%emt 0:00:02]} Rxb3 {[%emt 0:02:53] [#]} 53. e7 $2 {[%emt 0:01:41]} (53. Rg6+ $1 $18 Kf8 54. Rxh6) 53... Rb4+ $1 $11 {[%emt 0:00:00]} (53... Rxg2 $2 54. e8=Q+ Kh7 55. Rxh6#) 54. Kd3 {[%emt 0:00:32][%mdl 1024] White has compensation.} Rbe4 {[%emt 0:00:00]} (54... Rxg2 $2 {leads to mate.} 55. e8=Q+ Kh7 56. Rxh6#) 55. Rf8+ {[%emt 0:00:32]} Kh7 {[%emt 0:00:00] The position is equal.} 56. Rf7+ {[%emt 0:00:00]} Kh8 {[%emt 0:00:03]} 57. Rf8+ {[%emt 0:00:40]} Kh7 {[%emt 0:02:27]} 58. Rf7+ Kh8 {[%emt 0:00:00]} 59. Rf8+ {[%emt 0:01:14]} Kh7 {[%emt 0:00:00]} 60. Rf7+ {[%emt 0:00:02]} Kh8 {[%emt 0:00:00]} 61. Rf8+ {[%emt 0:01:34]} Kh7 {[%emt 0:00:00]} 62. Rf6 {[%emt 0:01:00]} Kh8 {[%emt 0:02:30] Weighted Error Value: White=0.30/Black=0.40} 1/2-1/2

[Event "ITT 1st Parada Jamundi 2022"]
[Site "Jamundi Valle"]
[Date "2022.12.09"]
[Round "7.18"]
[White "Franco, Jhonier"]
[Black "Ramirez, Andres Felipe"]
[Result "0-1"]
[ECO "B01"]
[WhiteElo "1900"]
[BlackElo "1571"]
[Annotator "TA"]
[PlyCount "85"]
[EventDate "2022.12.05"]
[EventType "swiss"]
[EventCountry "COL"]
[SourceTitle "playchess.com"]
[Source "ChessBase"]
[SourceQuality "1"]
[TimeControl "5400+30"]

{[%evp 9,85,52,68,77,81,61,64,59,64,58,56,37,39,32,21,-51,-11,-55,-57,-97,-88,-87,-85,-140,-118,-147,-141,-145,-140,-145,-115,-111,-118,-126,-127,-110,57,-418,0,0,0,0,93,-345,-346,-336,-333,-312,-318,-329,-246,-225,-206,-215,-245,-235,-248,-299,-288,-406,-406,-413,-402,-556,-509,-675,-678,-1156,-1131,-1196,-1179,-1151,-1105,-1807,-1070,-1117,-660,-608]} 1. e4 {[%emt 0:02:09]} d5 {[%emt 0:00:46]} 2. exd5 {[%emt 0:00:07]} Qxd5 {[%emt 0:00:08]} 3. d4 {[%emt 0:00:15]} c6 {[%emt 0:00:12]} 4. c4 {[%emt 0:00:31]} Qd8 {[%emt 0:00:08]} 5. Nc3 {[%emt 0:00:10]} Nf6 {[%emt 0:00:12]} 6. Nf3 {[%emt 0:00:31] B01: Scandinavian Defence.} Bf5 {[%emt 0:00:21]} 7. Bd3 {[%emt 0:00:23]} Bxd3 {[%emt 0:00:22]} 8. Qxd3 {[%emt 0:00:01] White is slightly better.} e6 {[%emt 0:00:09]} 9. Bg5 {[%emt 0:00:12]} Be7 {[%emt 0:00:09]} 10. O-O-O {[%emt 0:00:05]} O-O {[%emt 0:00:24][%cal Ob7b5]} 11. h4 {[%emt 0:00:29]} Nbd7 {[%emt 0:03:09][%cal Ob7b5] [#]} 12. Rde1 $146 {[%emt 1:31:37] Against b5} (12. Kb1 $11) ({Predecessor:} 12. Ne5 Re8 13. Qg3 Qa5 14. h5 Rad8 15. Bh6 Bf8 16. Bxg7 Bxg7 17. h6 Kf8 18. Qxg7+ {1-0 (41) Alekseenko,K (2696)-Nitish,B (2351) Chess.com INT 2020}) 12... Re8 {[%emt 0:04:03][%cal Ob7b5]} 13. g4 {[%emt 0:00:00]} Nxg4 {[%emt 0:01:20]} 14. Qe2 {[%emt 0:00:00]} h5 {[%emt 0:05:07][%cal Oe6e5]} 15. Ne4 {[%emt 0:00:00]} Ndf6 {[%emt 0:00:23] [#] ...Nxe4 is the strong threat.} 16. Nc3 {[%emt 0:00:00]} ({Better is} 16. Ng3) 16... b5 {[%emt 0:06:07][%cal Bb7b5,Bb5b4,Bb4b3][%mdl 32]} 17. c5 {[%emt 0:00:00]} b4 {[%emt 0:01:05]} 18. Nd1 {[%emt 0:00:00]} Qd5 {[%emt 0:02:38]} 19. Kb1 {[%emt 0:00:00]} b3 {[%emt 0:01:00]} 20. a3 {[%emt 0:00:00]} Qf5+ {[%emt 0:00:34]} 21. Ka1 {[%emt 0:04:30]} Qc2 {[%emt 1:12:43] Black has more active pieces. The white rooks are badly placed.} 22. Qa6 {[%emt 0:00:30]} Ne4 $2 {[%emt 0:00:00]} ({Of course not} 22... Nxf2 $6 23. Nxf2 Qxf2 24. Rhf1 $11) (22... Nd5 $17 23. Ne3 Ndxe3 24. fxe3 Qe4) 23. Re2 $2 {[%emt 0:00:00][%mdl 8192]} (23. Ne3 $14 Nxe3 24. fxe3) 23... Bxg5 $2 {[%emt 0:01:00]} (23... Nxg5 $1 $19 {[%cal Rc2c1]} 24. Rxc2 bxc2) 24. Rxc2 $11 {[%emt 0:00:00]} bxc2 $40 {[%emt 0:00:00][%mdl 128] Black attacks. The board is on fire.} 25. Ne3 {[%emt 0:00:00]} Ngxf2 {[%emt 0:00:00]} (25... Bxe3 $11 26. fxe3 Nxe3) 26. Rc1 $2 {[%mdl 8192]} (26. hxg5 $16 {keeps the pressure on.} Nxh1 27. Nxc2) 26... Bxe3 $19 {[%emt 0:00:00]} 27. Rxc2 {[%emt 0:02:30]} Ng4 {[%emt 0:02:00]} 28. Qxc6 {[%emt 0:00:00]} Nef6 {[%emt 0:00:30]} 29. Qa6 {[%emt 0:01:00]} e5 {[%emt 0:00:30]} 30. dxe5 {[%emt 0:00:00]} Nxe5 {[%emt 0:00:30]} 31. Nxe5 {[%emt 0:00:00]} Rxe5 {[%emt 0:00:00]} 32. c6 {[%emt 0:00:00] [#] And now c7 would win.} Ree8 $1 {[%emt 0:00:00]} 33. Re2 {[%emt 0:00:00]} Bb6 {[%emt 0:00:00] Inhibits c7.} 34. Rc2 {[%emt 0:00:00]} (34. Ka2 {was worth a try.}) 34... Nd5 {[%emt 0:00:00]} 35. Qb5 {[%emt 0:00:00]} Rad8 {[%emt 0:00:00]} 36. a4 {[%emt 0:00:00]} Bc7 {[%emt 0:00:00] Black is clearly winning.} 37. Rc1 {[%emt 0:00:00]} a5 {[%emt 0:00:00]} 38. Qc4 {[%emt 0:00:00]} Nb4 {[%emt 0:00:00]} 39. Qb5 {[%emt 0:00:00]} g6 {[%emt 0:00:00]} 40. Qb7 {[%emt 0:00:00]} Re7 {[%emt 0:00:00] Threatens to win with ...Rde8.} 41. Qb5 {[%emt 0:00:00]} Rb8 {[%emt 0:00:00]} 42. Qg5 {[%emt 0:00:00]} Re5 {[%emt 0:00:00]} 43. Qg1 {[%emt 0:00:00] Weighted Error Value: White=0.89/Black=0.37} 0-1

[Event "ITT 1st Parada Jamundi 2022"]
[Site "Jamundi Valle"]
[Date "2022.12.09"]
[Round "7.19"]
[White "Hernandez Jimenez, Xavi"]
[Black "Luligo Bejarano, Luis Angel"]
[Result "0-1"]
[ECO "B80"]
[WhiteElo "1678"]
[BlackElo "1675"]
[Annotator "NA RC COMBH"]
[PlyCount "68"]
[EventDate "2022.12.05"]
[EventType "swiss"]
[EventCountry "COL"]
[SourceTitle "playchess.com"]
[Source "ChessBase"]
[SourceQuality "1"]
[TimeControl "5400+30"]

1. e4 {[%emt 0:02:03]} c5 {[%emt 0:00:31]} 2. Nf3 {[%emt 0:00:34]} d6 {[%emt 0:00:21]} 3. d4 {[%emt 0:00:54]} cxd4 {[%emt 0:00:33]} 4. Nxd4 {[%emt 0:00:43]} Nf6 {[%emt 0:01:14]} 5. Nc3 {[%emt 0:00:31]} a6 {[%emt 0:01:10]} 6. f3 {[%emt 0:01:24]} e6 {[%emt 0:00:23]} 7. Be3 {[%emt 0:01:05]} Be7 {[%emt 0:01:51]} 8. Qd2 {[%emt 0:01:14]} b5 {[%emt 0:01:29]} 9. O-O-O {[%emt 0:03:05]} b4 {[%emt 0:05:10]} 10. Nce2 {[%emt 0:02:21]} Qc7 {[%emt 0:03:43]} 11. g4 {[%emt 0:09:14]} h6 {[%emt 0:04:04]} 12. h4 {[%emt 0:03:52]} d5 {[%emt 0:08:19]} 13. Bg2 {[%emt 0:09:23]} e5 {[%emt 0:36:42]} 14. Nf5 {[%emt 0:07:30]} Bxf5 {[%emt 0:00:08]} 15. gxf5 {[%emt 0:00:15]} dxe4 {[%emt 0:01:25]} 16. fxe4 {[%emt 0:01:27]} Nbd7 {[%emt 0:02:59]} 17. Bf3 {[%emt 0:04:31]} Nb6 {[%emt 0:00:55]} 18. Qd3 {[%emt 0:06:32]} Nc4 {[%emt 0:03:24]} 19. Bf2 {[%emt 0:09:47]} a5 {[%emt 0:06:24]} 20. Ng3 {[%emt 0:09:09]} Rd8 {[%emt 0:06:48]} 21. Qb3 {[%emt 0:01:41]} O-O {[%emt 0:02:38]} 22. Rhg1 {[%emt 0:05:24]} Qc6 {[%emt 0:00:41]} 23. Rd5 {[%emt 0:07:12]} Rc8 {[%emt 0:07:22]} 24. Qd3 {[%emt 0:06:01]} a4 {[%emt 0:00:36]} 25. Kb1 {[%emt 0:02:48]} b3 {[%emt 0:01:12]} 26. cxb3 {[%emt 0:01:01]} axb3 {[%emt 0:00:32]} 27. axb3 {[%emt 0:00:41]} Nb6 {[%emt 0:01:19]} 28. Rxe5 {[%emt 0:00:18]} Rfd8 {[%emt 0:00:17]} 29. Qe2 {[%emt 0:01:08]} Bb4 {[%emt 0:00:20]} 30. Be3 {[%emt 0:00:32]} Rd2 {[%emt 0:00:10]} 31. Qxd2 {[%emt 0:02:41]} Bxd2 {[%emt 0:00:09]} 32. Rc5 {[%emt 0:00:10]} Qd7 {[%emt 0:00:18]} 33. Rxc8+ {[%emt 0:00:18]} Nxc8 {[%emt 0:00:06]} 34. Rd1 {[%emt 0:00:10]} Qd4 {[%emt 0:04:17]} 0-1

[Event "ITT 1st Parada Jamundi 2022"]
[Site "Jamundi Valle"]
[Date "2022.12.09"]
[Round "7.20"]
[White "Garces, Javier"]
[Black "Mata Zambrano, Luis Enrique"]
[Result "1-0"]
[ECO "D91"]
[WhiteElo "1863"]
[BlackElo "1544"]
[Annotator "NA RC COMBH"]
[PlyCount "73"]
[EventDate "2022.12.05"]
[EventType "swiss"]
[EventCountry "COL"]
[SourceTitle "playchess.com"]
[Source "ChessBase"]
[SourceQuality "1"]
[TimeControl "5400+30"]

1. d4 {[%emt 0:03:00]} Nf6 {[%emt 0:03:53]} 2. c4 {[%emt 0:00:06]} g6 {[%emt 0:00:33]} 3. Nc3 {[%emt 0:00:13]} d5 {[%emt 0:00:15]} 4. Bg5 {[%emt 0:01:44]} Ne4 {[%emt 0:00:32]} 5. Bh4 {[%emt 0:02:45]} Nxc3 {[%emt 0:02:53]} 6. bxc3 {[%emt 0:00:12]} Bg7 {[%emt 0:01:31]} 7. Nf3 {[%emt 0:00:45]} O-O {[%emt 0:00:27]} 8. e3 {[%emt 0:00:32]} c6 {[%emt 0:03:25]} 9. Qb3 {[%emt 0:01:06]} dxc4 {[%emt 0:01:07]} 10. Bxc4 {[%emt 0:00:17]} b5 {[%emt 0:00:02]} 11. Be2 {[%emt 0:00:40]} Be6 {[%emt 0:00:33]} 12. Qb4 {[%emt 0:02:40]} f6 {[%emt 0:00:20]} 13. O-O {[%emt 0:00:59]} Nd7 {[%emt 0:05:54]} 14. a4 {[%emt 0:00:00]} a6 {[%emt 0:01:09]} 15. axb5 {[%emt 0:03:05]} cxb5 {[%emt 0:00:08]} 16. c4 {[%emt 0:01:28]} Nb6 {[%emt 0:03:08]} 17. cxb5 {[%emt 0:01:38]} Nd5 {[%emt 0:00:13]} 18. Qb2 {[%emt 0:03:43]} Qb6 {[%emt 0:00:38]} 19. Qa3 {[%emt 0:09:21]} axb5 {[%emt 0:02:42]} 20. Qxa8 {[%emt 0:00:10]} Rxa8 {[%emt 0:00:13]} 21. Rxa8+ {[%emt 0:00:06]} Kf7 {[%emt 0:00:01]} 22. Rc1 {[%emt 0:03:43]} Qb7 {[%emt 0:04:17]} 23. Ra5 {[%emt 0:00:33]} b4 {[%emt 0:00:09]} 24. Rb5 {[%emt 0:00:30]} Qa7 {[%emt 0:00:45]} 25. Bc4 {[%emt 0:11:50]} Qa3 {[%emt 0:11:41]} 26. Re1 {[%emt 0:01:46]} Nc7 {[%emt 0:11:04]} 27. Bxe6+ {[%emt 0:00:25]} Kxe6 {[%emt 0:00:31]} 28. Rb6+ {[%emt 0:00:27]} Kf7 {[%emt 0:00:27]} 29. e4 {[%emt 0:01:00]} g5 {[%emt 0:06:24]} 30. Bg3 {[%emt 0:00:49]} g4 {[%emt 0:00:26]} 31. Nh4 {[%emt 0:02:56]} Ne6 {[%emt 0:01:15]} 32. Nf5 {[%emt 0:00:53]} Qc3 {[%emt 0:00:46]} 33. Rb1 {[%emt 0:02:27]} Qc2 {[%emt 0:01:55]} 34. R6xb4 {[%emt 0:01:31]} Qxe4 {[%emt 0:00:11]} 35. Nxg7 {[%emt 0:04:55]} Nxg7 {[%emt 0:00:27]} 36. d5 {[%emt 0:02:44]} h5 {[%emt 0:01:05]} 37. Rxe4 {[%emt 0:00:14]} 1-0

[Event "ITT 1st Parada Jamundi 2022"]
[Site "Jamundi Valle"]
[Date "2022.12.09"]
[Round "7.21"]
[White "Dabraccio, Guillermo"]
[Black "Contreras, Camilo Andres"]
[Result "0-1"]
[ECO "A80"]
[WhiteElo "1562"]
[BlackElo "1848"]
[Annotator "NA RC COMBH"]
[PlyCount "58"]
[EventDate "2022.12.05"]
[EventType "swiss"]
[EventCountry "COL"]
[SourceTitle "playchess.com"]
[Source "ChessBase"]
[SourceQuality "1"]
[TimeControl "5400+30"]

1. d4 {[%emt 0:03:24]} f5 {[%emt 0:04:03]} 2. Nd2 {[%emt 0:01:13]} Nf6 {[%emt 0:01:07]} 3. Ngf3 {[%emt 0:00:36]} g6 {[%emt 0:00:58]} 4. e3 {[%emt 0:00:45]} Bg7 {[%emt 0:01:55]} 5. Bc4 {[%emt 0:00:39]} e6 {[%emt 0:00:40]} 6. O-O {[%emt 0:00:49]} O-O {[%emt 0:04:15]} 7. b3 d5 {[%emt 1:21:02]} 8. Be2 {[%emt 0:02:26]} Ne4 {[%emt 0:00:00]} 9. Bb2 {[%emt 0:00:30]} Nd7 {[%emt 0:00:00]} 10. c4 {[%emt 0:00:41]} c6 {[%emt 0:00:00]} 11. Nxe4 {[%emt 0:00:55]} fxe4 {[%emt 0:00:00]} 12. Ne1 {[%emt 0:04:32]} Qg5 {[%emt 0:00:00]} 13. Ba3 {[%emt 0:02:51]} Rf7 {[%emt 0:00:00]} 14. cxd5 {[%emt 0:01:34]} exd5 {[%emt 0:00:00]} 15. Bg4 {[%emt 0:01:04]} Nf8 {[%emt 0:00:00]} 16. Bxc8 {[%emt 0:06:38]} Rxc8 {[%emt 0:00:00]} 17. Rc1 {[%emt 0:00:10]} Ne6 {[%emt 0:00:00]} 18. Qd2 {[%emt 0:01:38]} Bxd4 {[%emt 0:00:00]} 19. Bb2 {[%emt 0:10:07]} Bxb2 {[%emt 0:00:00]} 20. Qxb2 {[%emt 0:00:12]} Rcf8 {[%emt 0:00:00]} 21. Qe2 {[%emt 0:01:41]} d4 {[%emt 0:00:00]} 22. f4 {[%emt 0:05:25]} d3 {[%emt 0:00:00]} 23. fxg5 {[%emt 0:02:43]} dxe2 {[%emt 0:00:00]} 24. Rxf7 {[%emt 0:00:07]} Rxf7 {[%emt 0:00:00]} 25. Nc2 {[%emt 0:00:22]} Rd7 {[%emt 0:00:00]} 26. Re1 {[%emt 0:00:51]} Rd2 {[%emt 0:00:00]} 27. Nd4 {[%emt 0:02:17]} Nxd4 {[%emt 0:00:00]} 28. exd4 {[%emt 0:00:09]} e3 {[%emt 0:00:00]} 29. a3 {[%emt 0:01:12]} Rd1 {[%emt 0:11:00]} 0-1

[Event "ITT 1st Parada Jamundi 2022"]
[Site "Jamundi Valle"]
[Date "2022.12.09"]
[Round "7.22"]
[White "Valencia, Dario"]
[Black "Rodriguez, Juan Gabriel"]
[Result "0-1"]
[ECO "B23"]
[WhiteElo "1841"]
[BlackElo "1665"]
[Annotator "NA RC COMBH"]
[PlyCount "72"]
[EventDate "2022.12.05"]
[EventType "swiss"]
[EventCountry "COL"]
[SourceTitle "playchess.com"]
[Source "ChessBase"]
[SourceQuality "1"]
[TimeControl "5400+30"]

1. e4 {[%emt 0:00:42]} c5 {[%emt 0:01:38]} 2. Nc3 {[%emt 0:00:18]} Nc6 {[%emt 0:00:16]} 3. f4 {[%emt 0:00:13]} e6 {[%emt 0:00:30]} 4. Nf3 {[%emt 0:06:34]} d5 {[%emt 0:00:07]} 5. Bb5 {[%emt 0:01:28]} d4 {[%emt 0:00:30]} 6. Ne2 {[%emt 0:00:20]} Bd7 {[%emt 0:00:20]} 7. d3 {[%emt 0:00:15]} Qa5+ {[%emt 0:00:55]} 8. Bd2 {[%emt 0:00:18]} Qxb5 {[%emt 0:00:05]} 9. O-O {[%emt 0:00:20]} Nf6 {[%emt 0:00:47]} 10. Ng3 {[%emt 0:00:24]} Be7 {[%emt 0:01:20]} 11. c4 {[%emt 0:00:26]} dxc3 {[%emt 0:01:25]} 12. Bxc3 {[%emt 0:00:14]} O-O-O {[%emt 0:00:26]} 13. a4 {[%emt 0:00:20]} Qa6 {[%emt 0:01:05]} 14. Qc2 {[%emt 0:03:39]} Kb8 {[%emt 0:00:43]} 15. Kh1 {[%emt 0:05:48]} h6 {[%emt 0:00:43]} 16. Rfd1 {[%emt 0:00:52]} Rc8 {[%emt 0:03:14]} 17. Qb3 {[%emt 0:03:09]} Rhd8 {[%emt 0:00:57]} 18. Qb5 {[%emt 0:02:23]} Qxb5 {[%emt 0:03:24]} 19. axb5 {[%emt 0:00:19]} Nb4 {[%emt 0:00:16]} 20. Be5+ {[%emt 0:00:25]} Ka8 {[%emt 0:00:20]} 21. b6 {[%emt 0:01:20]} a6 {[%emt 0:00:15]} 22. Bc7 {[%emt 0:00:27]} Rf8 {[%emt 0:00:15]} 23. d4 {[%emt 0:01:06]} Bc6 {[%emt 0:03:46]} 24. dxc5 {[%emt 0:04:01]} Bxc5 {[%emt 0:01:18]} 25. Rdc1 {[%emt 0:00:22]} Be7 {[%emt 0:03:06]} 26. Nd4 {[%emt 0:04:38]} Bxe4 {[%emt 0:01:49]} 27. Nxe4 {[%emt 0:04:46]} Nxe4 {[%emt 0:00:17]} 28. Ra4 {[%emt 0:00:36]} Nf2+ {[%emt 0:01:22]} 29. Kg1 {[%emt 0:00:21]} Nfd3 {[%emt 0:00:03]} 30. Rc3 {[%emt 0:07:40]} Nxb2 {[%emt 1:14:18]} 31. Ra5 {[%emt 0:52:16]} N2d3 {[%emt 0:00:00]} 32. Rca3 {[%emt 0:00:00]} Bc5 {[%emt 0:00:00]} 33. Rxc5 {[%emt 0:01:00]} Nxc5 {[%emt 0:00:00]} 34. Bd6 {[%emt 0:00:00]} Ncd3 {[%emt 0:00:00]} 35. h3 {[%emt 0:00:00]} Rfd8 {[%emt 0:00:00]} 36. Nb5 {[%emt 0:00:00]} Rxd6 {[%emt 0:00:00]} 0-1

[Event "ITT 1st Parada Jamundi 2022"]
[Site "Jamundi Valle"]
[Date "2022.12.09"]
[Round "7.23"]
[White "Gomez Saenz, Manuela"]
[Black "Hernandez Pinzon, Helvert"]
[Result "0-1"]
[ECO "B25"]
[WhiteElo "1479"]
[BlackElo "1835"]
[Annotator "NA RC COMBH"]
[PlyCount "76"]
[EventDate "2022.12.05"]
[EventType "swiss"]
[EventCountry "COL"]
[SourceTitle "playchess.com"]
[Source "ChessBase"]
[SourceQuality "1"]
[TimeControl "5400+30"]

1. e4 {[%emt 0:03:17]} c5 {[%emt 0:00:07]} 2. Nc3 {[%emt 0:00:54]} Nc6 {[%emt 0:00:10]} 3. g3 {[%emt 0:00:20]} g6 {[%emt 0:00:08]} 4. Bg2 {[%emt 0:00:30]} Bg7 {[%emt 0:00:03]} 5. f4 {[%emt 0:01:29]} e6 {[%emt 0:00:13]} 6. d3 {[%emt 0:00:36]} d6 {[%emt 0:00:04]} 7. Nf3 {[%emt 0:00:20]} Nge7 {[%emt 0:00:17]} 8. O-O {[%emt 0:00:58]} O-O {[%emt 0:00:35]} 9. Be3 {[%emt 0:00:54]} Nd4 {[%emt 0:01:16]} 10. e5 {[%emt 0:01:40]} Nef5 {[%emt 0:06:01]} 11. Bf2 {[%emt 0:05:02]} Nxf3+ {[%emt 0:11:12]} 12. Qxf3 {[%emt 0:02:22]} Nd4 {[%emt 0:02:46]} 13. Qd1 {[%emt 0:06:44]} dxe5 {[%emt 0:01:09]} 14. fxe5 {[%emt 0:01:03]} Bxe5 {[%emt 0:01:10]} 15. Ne4 {[%emt 0:03:41]} f5 {[%emt 0:26:18]} 16. Nd2 {[%emt 0:07:10]} Nc6 {[%emt 0:11:00]} 17. Bxc5 {[%emt 0:01:36]} Bd4+ {[%emt 0:00:32]} 18. Bxd4 {[%emt 0:00:57]} Qxd4+ {[%emt 0:00:02]} 19. Kh1 {[%emt 0:00:27]} Qxb2 {[%emt 0:00:21]} 20. Nc4 {[%emt 0:07:40]} Qf6 {[%emt 0:02:45]} 21. Qd2 {[%emt 0:07:04]} e5 {[%emt 0:02:32]} 22. Rae1 {[%emt 0:03:02]} Re8 {[%emt 0:01:40]} 23. Re4 {[%emt 0:02:26]} Qg7 {[%emt 0:02:43]} 24. Rh4 {[%emt 0:04:08]} Be6 {[%emt 0:01:33]} 25. Rb1 {[%emt 0:06:22]} Rad8 {[%emt 0:02:33]} 26. Qc3 {[%emt 0:05:22]} Re7 {[%emt 0:05:32]} 27. Re1 {[%emt 0:06:04]} e4 {[%emt 0:02:55]} 28. Qxg7+ {[%emt 0:02:24]} Kxg7 {[%emt 0:00:10]} 29. Rf4 {[%emt 0:01:52]} Bxc4 {[%emt 0:01:12]} 30. dxc4 {[%emt 0:00:17]} Rd2 {[%emt 0:00:41]} 31. g4 {[%emt 0:03:25]} Re5 {[%emt 0:02:15]} 32. gxf5 {[%emt 0:01:37]} gxf5 {[%emt 0:00:05]} 33. Rg1 {[%emt 0:02:11]} Kf6 {[%emt 0:01:58]} 34. Rh4 {[%emt 0:00:36]} Re7 {[%emt 0:01:34]} 35. Rf1 {[%emt 0:02:33]} e3 {[%emt 0:06:09]} 36. Rhf4 {[%emt 0:02:59]} Re5 {[%emt 0:00:15]} 37. Bf3 {[%emt 0:00:46]} e2 {[%emt 0:00:49]} 38. Re1 {[%emt 0:00:24]} Rd1 {[%emt 0:00:21]} 0-1